fUSD/lending_fUSD_20260407
["ID","MTS","AMOUNT","RATE_DAILY","PERIOD"]
[419938576,1775523062712,-151.0,0.00014847,2]
[419938577,1775523062724,-1071.012167,0.00014847,2]
[419938578,1775523062737,-2504.5365,0.00014847,2]
[419938579,1775523062748,-247.226376,0.00014847,2]
[419938580,1775523062760,-348.96767,0.00014847,2]
[419938581,1775523062772,-275.362629,0.00014847,2]
[419938582,1775523062785,-151.0,0.00014847,2]
[419938583,1775523062797,-1071.012167,0.00014847,2]
[419938584,1775523062810,-2504.5365,0.00014847,2]
[419938585,1775523062822,-247.226376,0.00014847,2]
[419938586,1775523062835,-151.0,0.00014847,2]
[419938587,1775523062849,-348.96767,0.00014847,2]
[419938588,1775523062861,-275.362629,0.00014847,2]
[419938589,1775523062873,-1071.012167,0.00014847,2]
[419938590,1775523062886,-2504.5365,0.00014847,2]
[419938591,1775523062898,-247.226376,0.00014847,2]
[419938592,1775523062911,-348.96767,0.00014847,2]
[419938593,1775523062923,-1071.012167,0.00014847,2]
[419938594,1775523062936,-2504.5365,0.00014847,2]
[419938595,1775523062948,-151.0,0.00014847,2]
[419938596,1775523062960,-348.96767,0.00014847,2]
[419938597,1775523062972,-740.9655,0.00014847,2]
[419938598,1775523062984,-186.009207,0.00014847,2]
[419938599,1775523062996,-740.9655,0.00014847,2]
[419938600,1775523063009,-740.9655,0.00014847,2]
[419938601,1775523063021,-151.0,0.00014847,2]
[419938602,1775523063034,-151.0,0.00014847,2]
[419938603,1775523063046,-740.9655,0.00014847,2]
[419938604,1775523063059,-270.185417,0.00014847,2]
[419938605,1775523063071,-186.009207,0.00014847,2]
[419938606,1775523063084,-227.042467,0.00014847,2]
[419938607,1775523063095,-270.185417,0.00014847,2]
[419938608,1775523063109,-186.009207,0.00014847,2]
[419938609,1775523063122,-151.0,0.00014847,2]
[419938610,1775523063134,-227.042467,0.00014847,2]
[419938611,1775523063146,-270.185417,0.00014847,2]
[419938612,1775523063159,-186.009207,0.00014847,2]
[419938613,1775523063171,-227.042467,0.00014847,2]
[419938614,1775523063183,-270.185423,0.00014847,2]
[419938615,1775523063195,-151.0,0.00014847,2]
[419938616,1775523063207,-227.042471,0.00014847,2]
[419938617,1775523063219,-151.0,0.00014847,2]
[419938618,1775523063231,-151.0,0.00014847,2]
[419938619,1775523063244,-408.409222,0.00014847,2]
[419938620,1775523063257,-151.0,0.00014847,2]
[419938621,1775523063268,-408.409222,0.00014847,2]
[419938622,1775523063281,-408.409222,0.00014847,2]
[419938623,1775523063293,-684.506587,0.00014847,2]
[419938624,1775523063314,-408.409218,0.00014847,2]
[419938625,1775523063329,-684.506587,0.00014847,2]
[419938626,1775523063346,-529.960692,0.00014847,2]
[419938627,1775523063362,-684.506587,0.00014847,2]
[419938628,1775523063377,-151.0,0.00014847,2]
[419938629,1775523063392,-529.960692,0.00014847,2]
[419938630,1775523063407,-684.506592,0.00014847,2]
[419938631,1775523063422,-151.0,0.00014847,2]
[419938632,1775523064407,-151.0,0.00014847,2]
[419938633,1775523064460,-529.960692,0.00014847,2]
[419938634,1775523064493,-151.0,0.00014847,2]
[419938635,1775523064519,-151.0,0.00014847,2]
[419938636,1775523064538,-151.0,0.00014847,2]
[419938637,1775523064550,-529.960692,0.00014847,2]
[419938638,1775523064559,-151.0,0.00014847,2]
[419938639,1775523064568,-151.0,0.00014847,2]
[419938640,1775523064577,-286.269994,0.00014847,2]
[419938641,1775523064587,-286.269994,0.00014847,2]
[419938642,1775523064595,-286.269994,0.00014847,2]
[419938643,1775523064605,-286.269984,0.00014847,2]
[419938644,1775523064614,-151.0,0.00014847,2]
[419938645,1775523064623,-151.0,0.00014847,2]
[419938646,1775523064635,-151.0,0.00014847,2]
[419938647,1775523064645,-151.0,0.00014847,2]
[419938648,1775523064654,-221.392958,0.00014847,2]
[419938649,1775523064663,-221.392958,0.00014847,2]
[419938650,1775523064672,-151.0,0.00014847,2]
[419938651,1775523064681,-221.392958,0.00014847,2]
[419938652,1775523064690,-620.064257,0.00014847,2]
[419938653,1775523064699,-620.064257,0.00014847,2]
[419938654,1775523064708,-218.260658,0.00014847,2]
[419938655,1775523064717,-620.064257,0.00014847,2]
[419938656,1775523064726,-218.260658,0.00014847,2]
[419938657,1775523064735,-620.064261,0.00014847,2]
[419938658,1775523064744,-218.260658,0.00014847,2]
[419938659,1775523064754,-218.260666,0.00014847,2]
[419938660,1775523064762,-221.392958,0.00014847,2]
[419938661,1775523064772,-151.0,0.00014847,2]
[419938662,1775523064781,-234.076238,0.00014847,2]
[419938663,1775523064790,-234.076238,0.00014847,2]
[419938664,1775523064799,-299.610638,0.00014847,2]
[419938665,1775523064809,-234.076238,0.00014847,2]
[419938666,1775523064818,-234.07623,0.00014847,2]
[419938667,1775523064827,-428.470905,0.00014847,2]
[419938668,1775523064836,-151.0,0.00014847,2]
[419938669,1775523064846,-428.470905,0.00014847,2]
[419938670,1775523064855,-151.0,0.00014847,2]
[419938671,1775523064864,-428.470905,0.00014847,2]
[419938672,1775523064873,-428.470901,0.00014847,2]
[419938673,1775523064882,-151.0,0.00014847,2]
[419938674,1775523064892,-151.0,0.00014847,2]
[419938675,1775523064902,-151.0,0.00014847,2]
[419938676,1775523064911,-151.0,0.00014847,2]
[419938677,1775523064920,-166.643962,0.00014847,2]
[419938678,1775523064930,-480.902673,0.00014847,2]
[419938679,1775523064940,-151.0,0.00014847,2]
[419938680,1775523064949,-151.0,0.00014847,2]
[419938681,1775523064958,-166.643962,0.00014847,2]
[419938682,1775523064967,-151.0,0.00014847,2]
[419938683,1775523064976,-480.902673,0.00014847,2]
[419938684,1775523064986,-166.643962,0.00014847,2]
[419938685,1775523064995,-480.902673,0.00014847,2]
[419938686,1775523065004,-166.64397,0.00014847,2]
[419938687,1775523065012,-480.902669,0.00014847,2]
[419938688,1775523065022,-158.022289,0.00014847,2]
[419938689,1775523065031,-1006.160731,0.00014847,2]
[419938690,1775523065040,-158.022289,0.00014847,2]
[419938691,1775523065050,-151.0,0.00014847,2]
[419938692,1775523065060,-1006.160731,0.00014847,2]
[419938693,1775523065071,-158.022289,0.00014847,2]
[419938694,1775523065080,-151.0,0.00014847,2]
[419938695,1775523065090,-1006.160731,0.00014847,2]
[419938696,1775523065099,-158.022285,0.00014847,2]
[419938697,1775523065108,-1006.160727,0.00014847,2]
[419938698,1775523065118,-306.772656,0.00014847,2]
[419938699,1775523065127,-306.772656,0.00014847,2]
[419938700,1775523065137,-306.772656,0.00014847,2]
[419938701,1775523065146,-306.772656,0.00014847,2]
[419938702,1775523065156,-174.752294,0.00014847,2]
[419938703,1775523065165,-174.752294,0.00014847,2]
[419938704,1775523065175,-174.752294,0.00014847,2]
[419938705,1775523065184,-174.752286,0.00014847,2]
[419938706,1775523065194,-263.571665,0.00014847,2]
[419938707,1775523065203,-151.0,0.00014847,2]
[419938708,1775523065212,-263.571665,0.00014847,2]
[419938709,1775523065222,-151.0,0.00014847,2]
[419938710,1775523065231,-263.571665,0.00014847,2]
[419938711,1775523065241,-294.365976,0.00014847,2]
[419938712,1775523065250,-263.571669,0.00014847,2]
[419938713,1775523065260,-151.0,0.00014847,2]
[419938714,1775523065269,-151.0,0.00014847,2]
[419938715,1775523065279,-151.0,0.00014847,2]
[419938716,1775523065288,-151.0,0.00014847,2]
[419938717,1775523065298,-686.376722,0.00014847,2]
[419938718,1775523065307,-454.709479,0.00014847,2]
[419938719,1775523065317,-686.376722,0.00014847,2]
[419938720,1775523065326,-151.0,0.00014847,2]
[419938721,1775523065336,-454.709479,0.00014847,2]
[419938722,1775523065345,-151.0,0.00014847,2]
[419938723,1775523065354,-208.151255,0.00014847,2]
[419938724,1775523065363,-260.986592,0.00014847,2]
[419938725,1775523065372,-686.376722,0.00014847,2]
[419938726,1775523065381,-454.709479,0.00014847,2]
[419938727,1775523065390,-173.123136,0.00014847,2]
[419938728,1775523065400,-208.151255,0.00014847,2]
[419938729,1775523065410,-260.986592,0.00014847,2]
[419938730,1775523065419,-151.0,0.00014847,2]
[419938731,1775523065428,-686.376722,0.00014847,2]
[419938732,1775523065437,-454.709473,0.00014847,2]
[419938733,1775523065447,-208.151255,0.00014847,2]
[419938734,1775523065456,-260.986592,0.00014847,2]
[419938735,1775523065466,-181.986648,0.00014847,2]
[419938736,1775523065475,-151.0,0.00014847,2]
[419938737,1775523065484,-208.151259,0.00014847,2]
[419938738,1775523065494,-181.986648,0.00014847,2]
[419938739,1775523065503,-260.986584,0.00014847,2]
[419938740,1775523065512,-151.0,0.00014847,2]
[419938741,1775523065521,-151.0,0.00014847,2]
[419938742,1775523065533,-181.986648,0.00014847,2]
[419938743,1775523065543,-151.0,0.00014847,2]
[419938744,1775523065553,-151.0,0.00014847,2]
[419938745,1775523065563,-151.0,0.00014847,2]
[419938746,1775523065574,-181.986648,0.00014847,2]
[419938747,1775523065585,-629.781206,0.00014847,2]
[419938748,1775523065595,-629.781206,0.00014847,2]
[419938749,1775523065606,-151.0,0.00014847,2]
[419938750,1775523065617,-629.781206,0.00014847,2]
[419938751,1775523065628,-151.0,0.00014847,2]
[419938752,1775523065638,-629.781201,0.00014847,2]
[419938753,1775523065648,-291.787919,0.00014847,2]
[419938754,1775523065660,-291.787919,0.00014847,2]
[419938755,1775523065670,-224.223956,0.00014847,2]
[419938756,1775523065679,-291.787919,0.00014847,2]
[419938757,1775523065689,-291.787923,0.00014847,2]
[419938758,1775523065699,-151.0,0.00014847,2]
[419938759,1775523065708,-151.0,0.00014847,2]
[419938760,1775523065718,-151.0,0.00014847,2]
[419938761,1775523065727,-151.0,0.00014847,2]
[419938762,1775523065737,-151.0,0.00014847,2]
[419938763,1775523065747,-288.088504,0.00014847,2]
[419938764,1775523065756,-151.0,0.00014847,2]
[419938765,1775523065766,-151.0,0.00014847,2]
[419938766,1775523065776,-151.0,0.00014847,2]
[419938767,1775523065786,-151.0,0.00014847,2]
[419938768,1775523065796,-151.0,0.00014847,2]
[419938769,1775523065805,-154.9954,0.00014847,2]
[419938770,1775523065815,-151.0,0.00014847,2]
[419938771,1775523065825,-151.0,0.00014847,2]
[419938772,1775523065835,-352.101634,0.00014847,2]
[419938773,1775523065845,-154.9954,0.00014847,2]
[419938774,1775523065855,-352.101634,0.00014847,2]
[419938775,1775523065865,-239.677603,0.00014847,2]
[419938776,1775523065875,-352.101634,0.00014847,2]
[419938777,1775523065884,-239.677603,0.00014847,2]
[419938778,1775523065894,-352.101626,0.00014847,2]
[419938779,1775523065904,-474.418297,0.00014847,2]
[419938780,1775523065914,-239.677603,0.00014847,2]
[419938781,1775523065923,-474.418297,0.00014847,2]
[419938782,1775523065933,-239.677601,0.00014847,2]
[419938783,1775523065942,-154.9954,0.00014847,2]
[419938784,1775523065952,-151.0,0.00014847,2]
[419938785,1775523065962,-474.418297,0.00014847,2]
[419938786,1775523065972,-2000.0,0.00014864,2]
[419938787,1775523065982,-500.0,0.00014864,2]
[419938788,1775523065991,-151.0,0.0001487,2]
[419938789,1775523066001,-152.0,0.0001487,2]
[419938790,1775523066017,-500.0,0.00014872,2]
[419938791,1775523066032,-547.42518034,0.00014872,2]
[419938792,1775523066042,-500.0,0.00014872,2]
[419938793,1775523066052,-500.0,0.00014872,2]
[419938794,1775523066062,-500.0,0.00014872,2]
[419938795,1775523066073,-500.0,0.00014872,2]
[419938796,1775523066083,-500.0,0.00014872,2]
[419938797,1775523066093,-500.0,0.00014872,2]
[419938798,1775523066103,-500.0,0.00014872,2]
[419938799,1775523066113,-500.0,0.00014872,2]
[419938800,1775523066124,-500.0,0.00014872,2]
[419938801,1775523066134,-500.0,0.00014872,2]
[419938802,1775523066144,-500.0,0.00014872,2]
[419938803,1775523066154,-500.0,0.00014872,2]
[419938804,1775523066165,-500.0,0.00014872,2]
[419938805,1775523066175,-500.0,0.00014872,2]
[419938806,1775523066185,-500.0,0.00014872,2]
[419938807,1775523066195,-500.0,0.00014872,2]
[419938808,1775523066205,-500.0,0.00014872,2]
[419938809,1775523066215,-618.35884444,0.00014872,2]
[419938810,1775523066225,-500.0,0.00014872,2]
[419938811,1775523066235,-500.0,0.00014872,2]
[419938812,1775523066244,-500.0,0.00014872,2]
[419938813,1775523066255,-500.0,0.00014872,2]
[419938814,1775523066264,-500.0,0.00014872,2]
[419938815,1775523066274,-500.0,0.00014872,2]
[419938816,1775523066284,-500.0,0.00014872,2]
[419938817,1775523066294,-500.0,0.00014872,2]
[419938818,1775523066304,-500.0,0.00014872,2]
[419938819,1775523066314,-500.0,0.00014872,2]
[419938820,1775523066324,-500.0,0.00014872,2]
[419938821,1775523066333,-500.0,0.00014872,2]
[419938822,1775523066343,-500.0,0.00014872,2]
[419938823,1775523066353,-500.0,0.00014872,2]
[419938824,1775523066362,-500.0,0.00014872,2]
[419938825,1775523066372,-500.0,0.00014872,2]
[419938826,1775523066381,-500.0,0.00014872,2]
[419938827,1775523066391,-500.0,0.00014872,2]
[419938828,1775523066400,-500.0,0.00014872,2]
[419938829,1775523066409,-200.0,0.00014873,2]
[419938830,1775523066419,-222.1,0.00014887,2]
[419938831,1775523066429,-501.0,0.00014914,3]
[419938832,1775523066439,-1000.0,0.00014916,2]
[419938833,1775523066448,-250.0,0.00014932,2]
[419938834,1775523066458,-557.78,0.00014932,2]
[419938835,1775523066468,-1000.0,0.00014949,2]
[419938836,1775523066477,-151.0,0.0001497,2]
[419938837,1775523066487,-151.0,0.0001497,2]
[419938838,1775523066497,-151.0,0.0001497,2]
[419938839,1775523066506,-666.0,0.00014972,2]
[419938840,1775523066516,-500.0,0.00014972,2]
[419938841,1775523066526,-500.0,0.00014972,2]
[419938842,1775523066535,-500.0,0.00014972,2]
[419938843,1775523066545,-500.0,0.00014972,2]
[419938844,1775523066555,-500.0,0.00014972,2]
[419938845,1775523066564,-500.0,0.00014972,2]
[419938846,1775523066573,-500.0,0.00014972,2]
[419938847,1775523066583,-500.0,0.00014972,2]
[419938848,1775523066592,-508.61892667,0.00014972,2]
[419938849,1775523066602,-500.0,0.00014972,2]
[419938850,1775523066612,-500.0,0.00014972,2]
[419938851,1775523066622,-151.0,0.00014973,2]
[419938852,1775523066632,-151.0,0.00014973,2]
[419938853,1775523066642,-151.0,0.00014973,2]
[419938854,1775523066651,-151.0,0.00014973,2]
[419938855,1775523066661,-4665.06684779,0.00014975,2]
[419938856,1775523066671,-151.0,0.00014975,2]
[419938857,1775523066680,-151.0,0.00014975,2]
[419938858,1775523066690,-2000.0,0.00014975,2]
[419938859,1775523066700,-2000.0,0.00014975,2]
[419938860,1775523066709,-2000.0,0.00014975,2]
[419938861,1775523066719,-3292.0,0.00014977,2]
[419938862,1775523066728,-500.0,0.00014999,2]
[419938863,1775523066738,-500.0,0.00014999,2]
[419938864,1775523066747,-500.0,0.00014999,2]
[419938865,1775523066757,-500.0,0.00014999,2]
[419938866,1775523066766,-500.0,0.00014999,2]
[419938867,1775523066776,-500.0,0.00014999,2]
[419938868,1775523066786,-500.0,0.00014999,2]
[419938869,1775523066796,-1084.35002386,0.00014999,5]
[419938870,1775523066806,-500.0,0.00014999,2]
[419938871,1775523066816,-500.0,0.00014999,2]
[419938872,1775523066826,-666.0,0.00014999,2]
[419938873,1775523066836,-425.93514769,0.00015,2]
[419938874,1775523066845,-77159.315715,0.00015,2]
[419938875,1775523066855,-195.0,0.00015,2]
[419938876,1775523066865,-300.0,0.00015,2]
[419938877,1775523066875,-1162.0,0.00015,2]
[419938878,1775523066884,-629.0,0.00015,2]
[419938879,1775523066894,-151.0,0.00015,2]
[419938880,1775523066904,-151.0,0.00015,2]
[419938881,1775523066913,-151.0,0.00015,2]
[419938882,1775523066923,-151.0,0.00015,2]
[419938883,1775523066933,-151.0,0.00015,2]
[419938884,1775523066942,-151.0,0.00015,2]
[419938885,1775523066952,-151.0,0.00015,2]
[419938886,1775523066962,-151.0,0.00015,2]
[419938887,1775523066972,-151.0,0.00015,2]
[419938888,1775523066982,-151.0,0.00015,2]
[419938889,1775523066992,-151.0,0.00015,2]
[419938890,1775523067001,-151.0,0.00015,2]
[419938891,1775523067011,-151.0,0.00015,2]
[419938892,1775523067021,-151.0,0.00015,2]
[419938893,1775523067030,-151.0,0.00015,2]
[419938894,1775523067039,-276.717078,0.00015,2]
[419938895,1775523067049,-398.899206,0.00015,2]
[419938896,1775523067059,-398.899206,0.00015,2]
[419938897,1775523067069,-398.899206,0.00015,2]
[419938898,1775523067079,-398.899208,0.00015,2]
[419938899,1775523067088,-217.015445,0.00015,2]
[419938900,1775523067099,-151.0,0.00015,2]
[419938901,1775523067109,-217.015445,0.00015,2]
[419938902,1775523067118,-151.0,0.00015,2]
[419938903,1775523067128,-217.015445,0.00015,2]
[419938904,1775523067138,-297.904091,0.00015,2]
[419938905,1775523067148,-217.015452,0.00015,2]
[419938906,1775523067158,-313.458578,0.00015,2]
[419938907,1775523067168,-297.904091,0.00015,2]
[419938908,1775523067177,-313.458578,0.00015,2]
[419938909,1775523067188,-297.904091,0.00015,2]
[419938910,1775523067200,-229.550899,0.00015,2]
[419938911,1775523067211,-313.458578,0.00015,2]
[419938912,1775523067221,-327.635366,0.00015,2]
[419938913,1775523067231,-297.904091,0.00015,2]
[419938914,1775523067241,-164.588634,0.00015,2]
[419938915,1775523067251,-313.458581,0.00015,2]
[419938916,1775523067262,-327.635366,0.00015,2]
[419938917,1775523067272,-164.588634,0.00015,2]
[419938918,1775523067283,-327.635366,0.00015,2]
[419938919,1775523067294,-164.588634,0.00015,2]
[419938920,1775523067304,-910.314917,0.00015,2]
[419938921,1775523067316,-151.0,0.00015,2]
[419938922,1775523067327,-327.635366,0.00015,2]
[419938923,1775523067337,-164.588634,0.00015,2]
[419938924,1775523067347,-910.314917,0.00015,2]
[419938925,1775523067357,-229.550899,0.00015,2]
[419938926,1775523067367,-910.314917,0.00015,2]
[419938927,1775523067379,-229.550899,0.00015,2]
[419938928,1775523067390,-151.0,0.00015,2]
[419938929,1775523067402,-910.314917,0.00015,2]
[419938930,1775523067413,-229.550895,0.00015,2]
[419938931,1775523067424,-345.475972,0.00015,2]
[419938932,1775523067434,-345.475972,0.00015,2]
[419938933,1775523067444,-188.645032,0.00015,2]
[419938934,1775523067455,-345.475972,0.00015,2]
[419938935,1775523067465,-188.645032,0.00015,2]
[419938936,1775523067475,-345.475972,0.00015,2]
[419938937,1775523067485,-188.645032,0.00015,2]
[419938938,1775523067496,-188.645031,0.00015,2]
[419938939,1775523067844,-151.0,0.00015,2]
[419938940,1775523067854,-1908.520882,0.00015,2]
[419938941,1775523067864,-1908.520882,0.00015,2]
[419938942,1775523067874,-240.14952,0.00015,2]
[419938943,1775523067886,-753.55201,0.00015,2]
[419938944,1775523067896,-1908.520882,0.00015,2]
[419938945,1775523067907,-240.14952,0.00015,2]
[419938946,1775523067916,-753.55201,0.00015,2]
[419938947,1775523067926,-1908.52088461,0.00015,2]
[419938948,1775523067935,-240.14952,0.00015,2]
[419938949,1775523067945,-753.55201,0.00015,2]
[419938950,1775523067954,-151.0,0.00015,2]
[419938951,1775523067964,-240.149529,0.00015,2]
[419938952,1775523067974,-753.552012,0.00015,2]
[419938953,1775523067984,-275.362629,0.00015,2]
[419938954,1775523067994,-247.226376,0.00015,2]
[419938955,1775523068004,-275.362629,0.00015,2]
[419938956,1775523068015,-151.0,0.00015,2]
[419938957,1775523068024,-1071.012167,0.00015,2]
[419938958,1775523068034,-2504.5365,0.00015,2]
[419938959,1775523068043,-247.226376,0.00015,2]
[419938960,1775523068053,-348.96767,0.00015,2]
[419938961,1775523068063,-275.362629,0.00015,2]
[419938962,1775523068072,-241.488972,0.00015,2]
[419938963,1775523068082,-1071.012167,0.00015,2]
[419938964,1775523068092,-2504.5365,0.00015,2]
[419938965,1775523068102,-247.226376,0.00015,2]
[419938966,1775523068112,-151.0,0.00015,2]
[419938967,1775523068122,-348.96767,0.00015,2]
[419938968,1775523068132,-275.362634,0.00015,2]
[419938969,1775523068141,-1071.012167,0.00015,2]
[419938970,1775523068154,-2504.5365,0.00015,2]
[419938971,1775523068164,-247.226376,0.00015,2]
[419938972,1775523068174,-348.96767,0.00015,2]
[419938973,1775523068183,-1071.012163,0.00015,2]
[419938974,1775523068193,-2504.53649384,0.00015,2]
[419938975,1775523068202,-348.967661,0.00015,2]
[419938976,1775523068211,-740.9655,0.00015,2]
[419938977,1775523068222,-186.009207,0.00015,2]
[419938978,1775523068233,-740.9655,0.00015,2]
[419938979,1775523068244,-740.9655,0.00015,2]
[419938980,1775523068254,-740.965492,0.00015,2]
[419938981,1775523068267,-186.009207,0.00015,2]
[419938982,1775523068278,-186.009207,0.00015,2]
[419938983,1775523068288,-186.009216,0.00015,2]
[419938984,1775523068298,-10000.0,0.00015,15]
[419938985,1775523068308,-858.0,0.00015,15]
[419938986,1775523068318,-500.0,0.00015016,2]
[419938987,1775523068328,-151.0,0.00015027,2]
[419938988,1775523068337,-2810.0,0.0001504,2]
[419938989,1775523068347,-162.0,0.0001504,2]
[419938990,1775523068357,-1573.0,0.0001504,2]
[419938991,1775523068367,-2811.0,0.0001504,2]
[419938992,1775523068377,-338.52,0.00015057,2]
[419938993,1775523068386,-456.74,0.00015057,2]
[419938994,1775523068396,-3523.84,0.00015057,2]
[419938995,1775523068405,-811.01,0.00015057,2]
[419938996,1775523068415,-663.37,0.00015057,2]
[419938997,1775523068425,-151.0,0.00015065,2]
[419938998,1775523068434,-155.0,0.00015068,2]
[419938999,1775523068444,-997.68,0.00015068,2]
[419939000,1775523068453,-840.61,0.00015068,2]
[419939001,1775523068463,-1148.319488,0.00015068,2]
[419939002,1775523068474,-1148.319488,0.00015068,2]
[419939003,1775523068484,-1148.319488,0.00015068,2]
[419939004,1775523068494,-1148.319488,0.00015068,2]
[419939005,1775523068504,-1148.319488,0.00015068,2]
[419939006,1775523068514,-1148.319488,0.00015068,2]
[419939007,1775523068524,-1148.319488,0.00015068,2]
[419939008,1775523068534,-1148.319488,0.00015068,2]
[419939009,1775523068544,-1148.319488,0.00015068,2]
[419939010,1775523068554,-1148.319488,0.00015068,2]
[419939011,1775523068563,-1148.319488,0.00015068,2]
[419939012,1775523068573,-1148.319488,0.00015068,2]
[419939013,1775523068582,-1148.319488,0.00015068,2]
[419939014,1775523068592,-1148.319488,0.00015068,2]
[419939015,1775523068602,-1148.319488,0.00015068,2]
[419939016,1775523068612,-1148.319488,0.00015068,2]
[419939017,1775523068621,-1148.319488,0.00015068,2]
[419939018,1775523068631,-1148.319488,0.00015068,2]
[419939019,1775523068642,-1148.319488,0.00015068,2]
[419939020,1775523068652,-1148.319488,0.00015068,2]
[419939021,1775523068661,-800.0,0.00015068,2]
[419939022,1775523068671,-512.0,0.00015082,2]
[419939023,1775523068681,-5888.0,0.00015089,2]
[419939024,1775523068691,-200.0,0.000151,2]
[419939025,1775523068700,-185.59,0.00015105,2]
[419939026,1775523068711,-160.59,0.00015108,2]
[419939027,1775523068721,-2000.0,0.00015109,2]
[419939028,1775523068731,-736.0,0.0001511,2]
[419939029,1775523068740,-1082.68616595,0.00015132,5]
[419939030,1775523068750,-1456.0,0.00015162,2]
[419939031,1775523068759,-200.0,0.00015191,2]
[419939032,1775523068769,-1481.23780761,0.00015191,2]
[419939033,1775523068779,-187.78006525,0.00015191,2]
[419939034,1775523068795,-799.54513345,0.00015191,2]
[419939035,1775523068805,-1148.372646,0.000152,2]
[419939036,1775523068816,-150.0,0.00015205,2]
[419939037,1775523068826,-809.22116892,0.00015205,2]
[419939038,1775523068836,-532.4329243,0.00015212,2]
[419939039,1775523068847,-152.0,0.00015236,11]
[419939040,1775523068857,-1500.0,0.0001524,2]
[419939041,1775523068867,-823.0,0.00015245,2]
[419939042,1775523068877,-1000.0,0.0001525,2]
[419939043,1775523068888,-809.22116892,0.0001526,2]
[419939044,1775523068899,-512.0,0.00015271,2]
[419939045,1775523068910,-2380.7306636,0.00015287,2]
[419939046,1775523068920,-955.62736973,0.00015295,30]
[419939047,1775523068930,-222.1,0.00015297,2]
[419939048,1775523068941,-306.0,0.000153,2]
[419939049,1775523068951,-1000.0,0.000153,2]
[419939050,1775523068961,-313.0,0.000153,2]
[419939051,1775523068971,-166.66,0.00015301,2]
[419939052,1775523068982,-809.22116892,0.00015315,2]
[419939053,1775523068992,-512.0,0.0001532,2]
[419939054,1775523069002,-1000.0,0.00015321,2]
[419939055,1775523069012,-1000.0,0.00015321,2]
[419939056,1775523069022,-1000.0,0.00015321,2]
[419939057,1775523069032,-1000.0,0.00015321,2]
[419939058,1775523069042,-500.84806746,0.00015321,2]
[419939059,1775523069052,-1000.0,0.00015321,2]
[419939060,1775523069062,-1000.0,0.00015321,2]
[419939061,1775523069073,-1001.14812328,0.00015321,2]
[419939062,1775523069083,-505.26388851,0.00015321,2]
[419939063,1775523069093,-500.0,0.00015321,2]
[419939064,1775523069103,-1000.0,0.00015321,2]
[419939065,1775523069113,-1000.0,0.00015321,2]
[419939066,1775523069124,-1000.0,0.00015321,2]
[419939067,1775523069134,-610.88201317,0.00015321,2]
[419939068,1775523069145,-1000.0,0.00015321,2]
[419939069,1775523069156,-501.68959435,0.00015321,2]
[419939070,1775523069167,-1000.0,0.00015321,2]
[419939071,1775523069179,-1000.0,0.00015321,2]
[419939072,1775523069191,-500.0,0.00015321,2]
[419939073,1775523069201,-1000.0,0.00015321,2]
[419939074,1775523069212,-501.47117302,0.00015321,2]
[419939075,1775523069223,-610.42839416,0.00015321,2]